[Event "Titled Tuesday Blitz August 15 Early 2023"]
[White "Bogaudinov, Rushan"]
[Black "Altman, Joshua"]
[WhiteFideId "4129288"]
[BlackFideId "426210"]
[WhiteElo "2342"]
[BlackElo "2579"]
[Result "0-1"]
[Round "2"]
[TimeControl "180+1"]
[Date "2023.08.15"]
[WhiteClock "0:02:03"]
[BlackClock "0:02:26"]
[Board "160"]

1. e4 {[%clk 0:02:52]}  Nc6 {[%clk 0:03:00]} 2. Bb5 {[%clk 0:02:50]}  Nd4 {[%clk 0:02:58]} 3. Bc4 {[%clk 0:02:50]}  e5 {[%clk 0:02:54]} 4. c3 {[%clk 0:02:49]}  Ne6 {[%clk 0:02:54]} 5. d4 {[%clk 0:02:46]}  exd4 {[%clk 0:02:51]} 6. cxd4 {[%clk 0:02:46]}  Bb4+ {[%clk 0:02:51]} 7. Nc3 {[%clk 0:02:45]}  Nf6 {[%clk 0:02:50]} 8. e5 {[%clk 0:02:42]}  Ne4 {[%clk 0:02:49]} 9. Qb3 {[%clk 0:02:40]}  Nxd4 {[%clk 0:02:31]} 10. Bxf7+ {[%clk 0:02:33]}  Kf8 {[%clk 0:02:31]} 11. Bd5 {[%clk 0:02:08]}  Nxb3 {[%clk 0:02:28]} 12. axb3 {[%clk 0:02:07]}  Nxc3 {[%clk 0:02:27]} 13. Kf1 {[%clk 0:02:03]}  Nxd5 {[%clk 0:02:26]} 0-1


[Site "https://www.chess.com"]

[Event "Titled Tuesday Blitz August 15 Early 2023"]
[White "Trifan, Andrei Ioan"]
[Black "Gatterer, Florian"]
[WhiteFideId "12967068"]
[BlackFideId "811688"]
[WhiteElo "2564"]
[BlackElo "2337"]
[Result "1-0"]
[Round "2"]
[TimeControl "180+1"]
[Date "2023.08.15"]
[WhiteClock "0:01:15"]
[BlackClock "0:00:00"]
[Board "163"]

1. Nf3 {[%clk 0:03:00]}  Nf6 {[%clk 0:02:57]} 2. b3 {[%clk 0:02:59]}  g6 {[%clk 0:02:57]} 3. Bb2 {[%clk 0:02:59]}  Bg7 {[%clk 0:02:58]} 4. e3 {[%clk 0:03:00]}  O-O {[%clk 0:02:57]} 5. Be2 {[%clk 0:03:00]}  c5 {[%clk 0:02:57]} 6. O-O {[%clk 0:02:55]}  Nc6 {[%clk 0:02:57]} 7. c4 {[%clk 0:02:52]}  d6 {[%clk 0:02:53]} 8. Nc3 {[%clk 0:02:49]}  e5 {[%clk 0:02:49]} 9. d3 {[%clk 0:02:44]}  Re8 {[%clk 0:02:47]} 10. a3 {[%clk 0:02:44]}  h6 {[%clk 0:02:44]} 11. h3 {[%clk 0:02:36]}  Be6 {[%clk 0:02:43]} 12. Nd2 {[%clk 0:02:34]}  d5 {[%clk 0:02:41]} 13. cxd5 {[%clk 0:02:35]}  Nxd5 {[%clk 0:02:41]} 14. Rc1 {[%clk 0:02:33]}  b6 {[%clk 0:02:40]} 15. Qc2 {[%clk 0:02:29]}  Nxc3 {[%clk 0:02:37]} 16. Bxc3 {[%clk 0:02:30]}  Rc8 {[%clk 0:02:29]} 17. Qb1 {[%clk 0:02:29]}  Qd7 {[%clk 0:02:21]} 18. Rfd1 {[%clk 0:02:27]}  Kh7 {[%clk 0:02:18]} 19. Bf1 {[%clk 0:02:19]}  Qe7 {[%clk 0:02:11]} 20. b4 {[%clk 0:02:02]}  cxb4 {[%clk 0:02:06]} 21. axb4 {[%clk 0:02:03]}  f6 {[%clk 0:01:57]} 22. b5 {[%clk 0:01:59]}  Nb8 {[%clk 0:01:57]} 23. d4 {[%clk 0:01:55]}  Nd7 {[%clk 0:01:39]} 24. dxe5 {[%clk 0:01:45]}  Nxe5 {[%clk 0:01:35]} 25. Bxe5 {[%clk 0:01:42]}  fxe5 {[%clk 0:01:36]} 26. Bd3 {[%clk 0:01:43]}  Bf7 {[%clk 0:01:30]} 27. Ne4 {[%clk 0:01:42]}  Bf8 {[%clk 0:01:02]} 28. Rxc8 {[%clk 0:01:23]}  Rxc8 {[%clk 0:01:01]} 29. Rc1 {[%clk 0:01:24]}  Qb4 {[%clk 0:00:42]} 30. Rxc8 {[%clk 0:01:18]}  Kg7 {[%clk 0:00:32]} 31. Qxb4 {[%clk 0:01:14]}  Bxb4 {[%clk 0:00:31]} 32. Rc7 {[%clk 0:01:15]}  a5 {[%clk 0:00:00]} 33. bxa6 {[%clk 0:01:15]} 1-0


[Site "https://www.chess.com"]

[Event "Titled Tuesday Blitz August 15 Early 2023"]
[White "Aggelis, Nikolaos"]
[Black "Pershina, Elena"]
[WhiteFideId "4213220"]
[BlackFideId "24147516"]
[WhiteElo "2560"]
[BlackElo "2336"]
[Result "1-0"]
[Round "2"]
[TimeControl "180+1"]
[Date "2023.08.15"]
[WhiteClock "0:00:51"]
[BlackClock "0:00:07"]
[Board "164"]

1. c4 {[%clk 0:02:57]}  c6 {[%clk 0:02:56]} 2. d4 {[%clk 0:02:51]}  d5 {[%clk 0:02:56]} 3. cxd5 {[%clk 0:02:52]}  cxd5 {[%clk 0:02:56]} 4. Nc3 {[%clk 0:02:53]}  Nf6 {[%clk 0:02:56]} 5. Nf3 {[%clk 0:02:53]}  Nc6 {[%clk 0:02:56]} 6. Bf4 {[%clk 0:02:54]}  Bf5 {[%clk 0:02:51]} 7. e3 {[%clk 0:02:54]}  a6 {[%clk 0:02:47]} 8. h3 {[%clk 0:02:44]}  e6 {[%clk 0:02:46]} 9. Nh4 {[%clk 0:02:44]}  Bg6 {[%clk 0:02:42]} 10. Nxg6 {[%clk 0:02:43]}  hxg6 {[%clk 0:02:42]} 11. Bd3 {[%clk 0:02:41]}  Bd6 {[%clk 0:02:41]} 12. Bg5 {[%clk 0:02:38]}  Qb6 {[%clk 0:02:31]} 13. a3 {[%clk 0:02:26]}  Rc8 {[%clk 0:02:17]} 14. O-O {[%clk 0:02:26]}  O-O {[%clk 0:02:12]} 15. Na4 {[%clk 0:02:25]}  Qa7 {[%clk 0:02:08]} 16. Rc1 {[%clk 0:02:24]}  Nd7 {[%clk 0:02:01]} 17. h4 {[%clk 0:02:16]}  b5 {[%clk 0:01:57]} 18. Nc3 {[%clk 0:02:04]}  b4 {[%clk 0:01:53]} 19. axb4 {[%clk 0:02:04]}  Nxb4 {[%clk 0:01:53]} 20. Bb1 {[%clk 0:02:04]}  Nf6 {[%clk 0:01:46]} 21. Bxf6 {[%clk 0:01:57]}  gxf6 {[%clk 0:01:47]} 22. h5 {[%clk 0:01:58]}  Kg7 {[%clk 0:01:40]} 23. Qg4 {[%clk 0:01:38]}  f5 {[%clk 0:01:36]} 24. Qg5 {[%clk 0:01:36]}  Rh8 {[%clk 0:01:32]} 25. g4 {[%clk 0:01:31]}  fxg4 {[%clk 0:01:12]} 26. Bxg6 {[%clk 0:01:12]}  fxg6 {[%clk 0:00:53]} 27. Qxg6+ {[%clk 0:01:13]}  Kf8 {[%clk 0:00:51]} 28. Qf6+ {[%clk 0:01:12]}  Kg8 {[%clk 0:00:44]} 29. Qxe6+ {[%clk 0:01:10]}  Qf7 {[%clk 0:00:37]} 30. Qxc8+ {[%clk 0:01:10]}  Kg7 {[%clk 0:00:35]} 31. Qxg4+ {[%clk 0:01:00]}  Kf8 {[%clk 0:00:20]} 32. Na2 {[%clk 0:00:54]}  Nxa2 {[%clk 0:00:11]} 33. Rc8+ {[%clk 0:00:53]}  Ke7 {[%clk 0:00:07]} 34. Rxh8 {[%clk 0:00:51]} 1-0


[Site "https://www.chess.com"]

[Event "Titled Tuesday Blitz August 15 Early 2023"]
[White "Ziatdinov, Raset"]
[Black "Nguyen Hong Anh"]
[WhiteFideId "2015323"]
[BlackFideId "12406732"]
[WhiteElo "2330"]
[BlackElo "2556"]
[Result "1-0"]
[Round "2"]
[TimeControl "180+1"]
[Date "2023.08.15"]
[WhiteClock "0:00:07"]
[BlackClock "0:00:04"]
[Board "165"]

1. e4 {[%clk 0:01:44]}  c5 {[%clk 0:02:57]} 2. Nf3 {[%clk 0:01:45]}  Nc6 {[%clk 0:02:55]} 3. d4 {[%clk 0:01:45]}  cxd4 {[%clk 0:02:56]} 4. Nxd4 {[%clk 0:01:46]}  g6 {[%clk 0:02:55]} 5. Nc3 {[%clk 0:01:46]}  Nf6 {[%clk 0:02:55]} 6. Be3 {[%clk 0:01:39]}  Bg7 {[%clk 0:02:54]} 7. Bc4 {[%clk 0:01:39]}  O-O {[%clk 0:02:52]} 8. Bb3 {[%clk 0:01:40]}  d6 {[%clk 0:02:51]} 9. f3 {[%clk 0:01:39]}  Bd7 {[%clk 0:02:50]} 10. Qd2 {[%clk 0:01:39]}  Rc8 {[%clk 0:02:49]} 11. O-O-O {[%clk 0:01:39]}  Ne5 {[%clk 0:02:47]} 12. g4 {[%clk 0:01:39]}  Qa5 {[%clk 0:02:06]} 13. Kb1 {[%clk 0:01:38]}  Rfd8 {[%clk 0:01:57]} 14. h4 {[%clk 0:01:31]}  h5 {[%clk 0:01:21]} 15. Bh6 {[%clk 0:01:26]}  Kh7 {[%clk 0:00:47]} 16. Bxg7 {[%clk 0:01:20]}  Kxg7 {[%clk 0:00:48]} 17. gxh5 {[%clk 0:01:20]}  Nxh5 {[%clk 0:00:48]} 18. Rdg1 {[%clk 0:00:51]}  Nc4 {[%clk 0:00:45]} 19. Bxc4 {[%clk 0:00:36]}  Rxc4 {[%clk 0:00:46]} 20. Rg5 {[%clk 0:00:37]}  Rc5 {[%clk 0:00:43]} 21. Rhg1 {[%clk 0:00:34]}  Rdc8 {[%clk 0:00:34]} 22. Nf5+ {[%clk 0:00:21]}  Bxf5 {[%clk 0:00:29]} 23. Rxh5 {[%clk 0:00:22]}  Bd7 {[%clk 0:00:19]} 24. Qh6+ {[%clk 0:00:20]}  Kf6 {[%clk 0:00:20]} 25. Nd5+ {[%clk 0:00:10]}  Rxd5 {[%clk 0:00:19]} 26. Rxd5 {[%clk 0:00:11]}  Qb6 {[%clk 0:00:19]} 27. Qg5+ {[%clk 0:00:11]}  Kg7 {[%clk 0:00:18]} 28. h5 {[%clk 0:00:10]}  Be8 {[%clk 0:00:16]} 29. hxg6 {[%clk 0:00:11]}  f6 {[%clk 0:00:16]} 30. Qg3 {[%clk 0:00:10]}  Qc6 {[%clk 0:00:15]} 31. Rd2 {[%clk 0:00:10]}  Qc5 {[%clk 0:00:15]} 32. Rh2 {[%clk 0:00:09]}  Rc6 {[%clk 0:00:11]} 33. c3 {[%clk 0:00:10]}  Qb5 {[%clk 0:00:11]} 34. Qh3 {[%clk 0:00:08]}  Bxg6 {[%clk 0:00:10]} 35. Qh8+ {[%clk 0:00:08]}  Kf7 {[%clk 0:00:10]} 36. Qh3 {[%clk 0:00:04]}  Qd3+ {[%clk 0:00:09]} 37. Ka1 {[%clk 0:00:04]}  Qe3 {[%clk 0:00:08]} 38. Qg3 {[%clk 0:00:04]}  Rxc3 {[%clk 0:00:07]} 39. Qxg6+ {[%clk 0:00:04]}  Ke6 {[%clk 0:00:07]} 40. bxc3 {[%clk 0:00:04]}  Qxc3+ {[%clk 0:00:06]} 41. Rb2 {[%clk 0:00:05]}  Qd4 {[%clk 0:00:06]} 42. Qf5+ {[%clk 0:00:06]}  Kf7 {[%clk 0:00:07]} 43. Qd5+ {[%clk 0:00:06]}  Qxd5 {[%clk 0:00:04]} 44. exd5 {[%clk 0:00:07]} 1-0


[Site "https://www.chess.com"]

[Event "Titled Tuesday Blitz August 15 Early 2023"]
[White "Haszon, David"]
[Black "Peatman, Carter"]
[WhiteFideId "733610"]
[BlackFideId "2096480"]
[WhiteElo "2537"]
[BlackElo "2325"]
[Result "0-1"]
[Round "2"]
[TimeControl "180+1"]
[Date "2023.08.15"]
[WhiteClock "0:00:16"]
[BlackClock "0:00:34"]
[Board "167"]

1. Nf3 {[%clk 0:02:59]}  d5 {[%clk 0:02:54]} 2. g3 {[%clk 0:02:58]}  Bf5 {[%clk 0:02:53]} 3. Bg2 {[%clk 0:02:58]}  e6 {[%clk 0:02:53]} 4. O-O {[%clk 0:02:57]}  Nf6 {[%clk 0:02:51]} 5. c4 {[%clk 0:02:48]}  Nbd7 {[%clk 0:02:46]} 6. Nc3 {[%clk 0:02:44]}  c6 {[%clk 0:02:44]} 7. d4 {[%clk 0:02:30]}  dxc4 {[%clk 0:02:32]} 8. Bg5 {[%clk 0:02:13]}  Be7 {[%clk 0:02:27]} 9. Re1 {[%clk 0:02:06]}  Ne4 {[%clk 0:02:20]} 10. Bxe7 {[%clk 0:01:55]}  Qxe7 {[%clk 0:02:20]} 11. Nxe4 {[%clk 0:01:54]}  Bxe4 {[%clk 0:02:20]} 12. Nd2 {[%clk 0:01:54]}  Bxg2 {[%clk 0:02:17]} 13. Kxg2 {[%clk 0:01:55]}  b5 {[%clk 0:02:10]} 14. a4 {[%clk 0:01:53]}  O-O {[%clk 0:02:03]} 15. b3 {[%clk 0:01:51]}  cxb3 {[%clk 0:01:54]} 16. axb5 {[%clk 0:01:48]}  cxb5 {[%clk 0:01:54]} 17. Qxb3 {[%clk 0:01:46]}  a6 {[%clk 0:01:48]} 18. e4 {[%clk 0:01:41]}  Nb6 {[%clk 0:01:46]} 19. Rec1 {[%clk 0:01:23]}  Qd6 {[%clk 0:01:37]} 20. Nf3 {[%clk 0:01:08]}  Nc4 {[%clk 0:01:32]} 21. Qd3 {[%clk 0:00:53]}  h6 {[%clk 0:01:25]} 22. Rc3 {[%clk 0:00:46]}  Rfd8 {[%clk 0:01:22]} 23. Rd1 {[%clk 0:00:44]}  Rac8 {[%clk 0:01:20]} 24. Qc2 {[%clk 0:00:39]}  Qb6 {[%clk 0:01:08]} 25. Qc1 {[%clk 0:00:27]}  Rc7 {[%clk 0:00:53]} 26. Ne5 {[%clk 0:00:19]}  Rxd4 {[%clk 0:00:47]} 27. Rxd4 {[%clk 0:00:18]}  Qxd4 {[%clk 0:00:46]} 28. Nxc4 {[%clk 0:00:19]}  Rxc4 {[%clk 0:00:39]} 29. Rxc4 {[%clk 0:00:19]}  bxc4 {[%clk 0:00:38]} 30. f3 {[%clk 0:00:18]}  Qd3 {[%clk 0:00:34]} 31. Qb1 {[%clk 0:00:16]} 0-1


[Site "https://www.chess.com"]

[Event "Titled Tuesday Blitz August 15 Early 2023"]
[White "Camilla_Lee"]
[Black "Iunusovnuriddin"]
[WhiteElo "2524"]
[BlackElo "2320"]
[Result "1/2-1/2"]
[Round "2"]
[TimeControl "180+1"]
[Date "2023.08.15"]
[WhiteClock "0:02:20"]
[BlackClock "0:01:06"]
[Board "169"]

1. e4 {[%clk 0:03:00]}  e5 {[%clk 0:02:59]} 2. Nf3 {[%clk 0:02:59]}  Nc6 {[%clk 0:02:59]} 3. Nc3 {[%clk 0:02:57]}  Nf6 {[%clk 0:02:58]} 4. d4 {[%clk 0:02:57]}  Bb4 {[%clk 0:02:58]} 5. d5 {[%clk 0:02:57]}  Ne7 {[%clk 0:02:57]} 6. Bd3 {[%clk 0:02:57]}  Bxc3+ {[%clk 0:02:55]} 7. bxc3 {[%clk 0:02:57]}  d6 {[%clk 0:02:56]} 8. c4 {[%clk 0:02:57]}  b6 {[%clk 0:02:54]} 9. a4 {[%clk 0:02:56]}  a5 {[%clk 0:02:54]} 10. Bg5 {[%clk 0:02:53]}  Ng6 {[%clk 0:02:53]} 11. Qd2 {[%clk 0:02:52]}  h6 {[%clk 0:02:52]} 12. Bxf6 {[%clk 0:02:51]}  Qxf6 {[%clk 0:02:53]} 13. h3 {[%clk 0:02:52]}  O-O {[%clk 0:02:50]} 14. O-O {[%clk 0:02:52]}  Nh4 {[%clk 0:02:41]} 15. Nxh4 {[%clk 0:02:51]}  Qxh4 {[%clk 0:02:42]} 16. f3 {[%clk 0:02:47]}  Bd7 {[%clk 0:02:40]} 17. Qe3 {[%clk 0:02:46]}  Rae8 {[%clk 0:02:20]} 18. Rf2 {[%clk 0:02:40]}  Qf4 {[%clk 0:02:00]} 19. Qe2 {[%clk 0:02:35]}  h5 {[%clk 0:01:53]} 20. Kf1 {[%clk 0:02:34]}  h4 {[%clk 0:01:53]} 21. Ke1 {[%clk 0:02:35]}  g6 {[%clk 0:01:44]} 22. Qd2 {[%clk 0:02:32]}  Kg7 {[%clk 0:01:41]} 23. Qxf4 {[%clk 0:02:30]}  exf4 {[%clk 0:01:41]} 24. Kd2 {[%clk 0:02:31]}  Kf6 {[%clk 0:01:41]} 25. Kc3 {[%clk 0:02:29]}  Ke5 {[%clk 0:01:42]} 26. Re2 {[%clk 0:02:30]}  Rh8 {[%clk 0:01:32]} 27. Ree1 {[%clk 0:02:24]}  Rh5 {[%clk 0:01:32]} 28. Re2 {[%clk 0:02:24]}  Rg5 {[%clk 0:01:32]} 29. Ra2 {[%clk 0:02:24]}  Rg3 {[%clk 0:01:30]} 30. Ra1 {[%clk 0:02:23]}  Rh8 {[%clk 0:01:29]} 31. Rd2 {[%clk 0:02:23]}  Rh5 {[%clk 0:01:29]} 32. Bf1 {[%clk 0:02:22]}  Rhg5 {[%clk 0:01:22]} 33. Re2 {[%clk 0:02:22]}  Rh5 {[%clk 0:01:21]} 34. Ra2 {[%clk 0:02:19]}  Rh8 {[%clk 0:01:21]} 35. Ra1 {[%clk 0:02:19]}  Rh7 {[%clk 0:01:09]} 36. Ree1 {[%clk 0:02:19]}  Rh6 {[%clk 0:01:09]} 37. Re2 {[%clk 0:02:19]}  Rh5 {[%clk 0:01:09]} 38. Ree1 {[%clk 0:02:19]}  Rhg5 {[%clk 0:01:09]} 39. Re2 {[%clk 0:02:20]}  Rh5 {[%clk 0:01:06]} 1/2-1/2


[Site "https://www.chess.com"]

[Event "Titled Tuesday Blitz August 15 Early 2023"]
[White "Bach Ngoc Thuy Duong"]
[Black "Samaganova, Aleksandra"]
[WhiteFideId "12408956"]
[BlackFideId "13800221"]
[WhiteElo "2507"]
[BlackElo "2318"]
[Result "1-0"]
[Round "2"]
[TimeControl "180+1"]
[Date "2023.08.15"]
[WhiteClock "0:00:31"]
[BlackClock "0:00:10"]
[Board "171"]

1. d4 {[%clk 0:03:00]}  Nf6 {[%clk 0:02:58]} 2. c4 {[%clk 0:02:59]}  e6 {[%clk 0:02:57]} 3. Nc3 {[%clk 0:02:59]}  Bb4 {[%clk 0:02:57]} 4. Qc2 {[%clk 0:02:59]}  b6 {[%clk 0:02:55]} 5. e4 {[%clk 0:02:58]}  c5 {[%clk 0:02:55]} 6. d5 {[%clk 0:02:58]}  d6 {[%clk 0:02:47]} 7. Bd3 {[%clk 0:02:50]}  e5 {[%clk 0:02:46]} 8. Ne2 {[%clk 0:02:48]}  O-O {[%clk 0:02:40]} 9. O-O {[%clk 0:02:48]}  Bxc3 {[%clk 0:02:39]} 10. Qxc3 {[%clk 0:02:18]}  Na6 {[%clk 0:02:37]} 11. f4 {[%clk 0:02:14]}  Nd7 {[%clk 0:02:23]} 12. a3 {[%clk 0:02:06]}  Nc7 {[%clk 0:02:20]} 13. Ng3 {[%clk 0:02:05]}  Re8 {[%clk 0:02:02]} 14. Nf5 {[%clk 0:01:52]}  Nf8 {[%clk 0:01:20]} 15. fxe5 {[%clk 0:01:37]}  dxe5 {[%clk 0:01:03]} 16. d6 {[%clk 0:00:53]}  Na6 {[%clk 0:00:32]} 17. Ne7+ {[%clk 0:00:52]}  Kh8 {[%clk 0:00:32]} 18. Qxe5 {[%clk 0:00:51]}  Be6 {[%clk 0:00:22]} 19. Bh6 {[%clk 0:00:31]}  f6 {[%clk 0:00:10]} 20. Bxg7+ {[%clk 0:00:30]}  Kxg7 {[%clk 0:00:10]} 21. Qxf6# {[%clk 0:00:31]} 1-0


[Site "https://www.chess.com"]

[Event "Titled Tuesday Blitz August 15 Early 2023"]
[White "LeoLV10"]
[Black "Prydun, Andriy"]
[BlackFideId "14145898"]
[WhiteElo "2506"]
[BlackElo "2317"]
[Result "1-0"]
[Round "2"]
[TimeControl "180+1"]
[Date "2023.08.15"]
[WhiteClock "0:02:18"]
[BlackClock "0:00:28"]
[Board "172"]

1. e4 {[%clk 0:03:00]}  d5 {[%clk 0:01:47]} 2. exd5 {[%clk 0:02:59]}  Qxd5 {[%clk 0:01:48]} 3. Nc3 {[%clk 0:02:59]}  Qd8 {[%clk 0:01:48]} 4. Bc4 {[%clk 0:03:00]}  Nf6 {[%clk 0:01:49]} 5. d3 {[%clk 0:03:00]}  e6 {[%clk 0:01:48]} 6. Bd2 {[%clk 0:03:00]}  Be7 {[%clk 0:01:48]} 7. h3 {[%clk 0:02:59]}  O-O {[%clk 0:01:49]} 8. Nf3 {[%clk 0:03:00]}  b6 {[%clk 0:01:49]} 9. a4 {[%clk 0:02:57]}  Bb7 {[%clk 0:01:50]} 10. a5 {[%clk 0:02:57]}  bxa5 {[%clk 0:01:50]} 11. Rxa5 {[%clk 0:02:58]}  Nc6 {[%clk 0:01:50]} 12. Ra1 {[%clk 0:02:56]}  Nd4 {[%clk 0:01:50]} 13. Nxd4 {[%clk 0:02:53]}  Qxd4 {[%clk 0:01:50]} 14. O-O {[%clk 0:02:47]}  Bd6 {[%clk 0:01:50]} 15. Qe2 {[%clk 0:02:41]}  Qh4 {[%clk 0:01:47]} 16. Ra4 {[%clk 0:02:22]}  h5 {[%clk 0:00:28]} 17. Ba6 {[%clk 0:02:18]} 1-0


[Site "https://www.chess.com"]

[Event "Titled Tuesday Blitz August 15 Early 2023"]
[White "Saucey, Michel"]
[Black "Hirneise, Jens"]
[WhiteFideId "601845"]
[BlackFideId "24614734"]
[WhiteElo "2307"]
[BlackElo "2502"]
[Result "0-1"]
[Round "2"]
[TimeControl "180+1"]
[Date "2023.08.15"]
[WhiteClock "0:01:40"]
[BlackClock "0:01:43"]
[Board "176"]

1. d4 {[%clk 0:03:00]}  Nf6 {[%clk 0:02:55]} 2. Nf3 {[%clk 0:03:00]}  c5 {[%clk 0:02:54]} 3. d5 {[%clk 0:02:59]}  g6 {[%clk 0:02:54]} 4. Nc3 {[%clk 0:02:59]}  d6 {[%clk 0:02:53]} 5. e4 {[%clk 0:02:57]}  Bg7 {[%clk 0:02:54]} 6. Be2 {[%clk 0:02:55]}  Bg4 {[%clk 0:02:53]} 7. O-O {[%clk 0:02:50]}  Nbd7 {[%clk 0:02:53]} 8. a4 {[%clk 0:02:50]}  O-O {[%clk 0:02:50]} 9. h3 {[%clk 0:02:44]}  Bxf3 {[%clk 0:02:49]} 10. Bxf3 {[%clk 0:02:43]}  a6 {[%clk 0:02:50]} 11. Bf4 {[%clk 0:02:41]}  Ne8 {[%clk 0:02:41]} 12. Re1 {[%clk 0:02:40]}  b5 {[%clk 0:02:38]} 13. axb5 {[%clk 0:02:38]}  axb5 {[%clk 0:02:36]} 14. Rxa8 {[%clk 0:02:37]}  Qxa8 {[%clk 0:02:37]} 15. Qd2 {[%clk 0:02:35]}  b4 {[%clk 0:02:30]} 16. Nd1 {[%clk 0:02:35]}  Qa2 {[%clk 0:02:26]} 17. b3 {[%clk 0:02:33]}  Nc7 {[%clk 0:02:21]} 18. Bh6 {[%clk 0:02:31]}  Bxh6 {[%clk 0:02:16]} 19. Qxh6 {[%clk 0:02:30]}  Qxc2 {[%clk 0:02:11]} 20. Ne3 {[%clk 0:02:23]}  Qc3 {[%clk 0:02:01]} 21. Rb1 {[%clk 0:02:03]}  Ra8 {[%clk 0:01:55]} 22. h4 {[%clk 0:01:52]}  Ra1 {[%clk 0:01:53]} 23. Rxa1 {[%clk 0:01:51]}  Qxa1+ {[%clk 0:01:53]} 24. Kh2 {[%clk 0:01:51]}  Ne5 {[%clk 0:01:50]} 25. Bd1 {[%clk 0:01:40]}  Qxd1 {[%clk 0:01:43]} 0-1


[Site "https://www.chess.com"]

[Event "Titled Tuesday Blitz August 15 Early 2023"]
[White "Konenkin, Dmitry"]
[Black "Reprintsev, Alexander"]
[WhiteFideId "4185781"]
[BlackFideId "14100541"]
[WhiteElo "2291"]
[BlackElo "2497"]
[Result "0-1"]
[Round "2"]
[TimeControl "180+1"]
[Date "2023.08.15"]
[WhiteClock "0:00:00"]
[BlackClock "0:01:10"]
[Board "185"]

1. d4 {[%clk 0:03:00]}  d5 {[%clk 0:02:48]} 2. Bg5 {[%clk 0:03:00]}  Nc6 {[%clk 0:02:45]} 3. Nf3 {[%clk 0:02:59]}  f6 {[%clk 0:02:44]} 4. Bh4 {[%clk 0:02:58]}  Nh6 {[%clk 0:02:44]} 5. e3 {[%clk 0:02:57]}  Nf5 {[%clk 0:02:43]} 6. Bd3 {[%clk 0:02:55]}  h5 {[%clk 0:02:41]} 7. h3 {[%clk 0:02:35]}  g5 {[%clk 0:02:39]} 8. Bg3 {[%clk 0:02:28]}  Nxg3 {[%clk 0:02:37]} 9. Bg6+ {[%clk 0:02:28]}  Kd7 {[%clk 0:02:37]} 10. fxg3 {[%clk 0:02:29]}  e6 {[%clk 0:02:33]} 11. c4 {[%clk 0:02:23]}  Bd6 {[%clk 0:02:28]} 12. O-O {[%clk 0:02:12]}  Bxg3 {[%clk 0:02:23]} 13. cxd5 {[%clk 0:02:11]}  exd5 {[%clk 0:02:23]} 14. Nc3 {[%clk 0:02:12]}  Ne7 {[%clk 0:02:19]} 15. Bf7 {[%clk 0:01:35]}  c6 {[%clk 0:02:17]} 16. Nd2 {[%clk 0:01:35]}  f5 {[%clk 0:01:50]} 17. Bxh5 {[%clk 0:01:29]}  Kc7 {[%clk 0:01:44]} 18. Rc1 {[%clk 0:01:25]}  Kb8 {[%clk 0:01:43]} 19. b4 {[%clk 0:00:55]}  a6 {[%clk 0:01:42]} 20. a4 {[%clk 0:00:55]}  Bc7 {[%clk 0:01:29]} 21. b5 {[%clk 0:00:52]}  Qd6 {[%clk 0:01:28]} 22. Bf3 {[%clk 0:00:28]}  axb5 {[%clk 0:01:17]} 23. axb5 {[%clk 0:00:28]}  g4 {[%clk 0:01:11]} 24. hxg4 {[%clk 0:00:00]}  Qg3 {[%clk 0:01:10]} 0-1


[Site "https://www.chess.com"]

[Event "Titled Tuesday Blitz August 15 Early 2023"]
[White "Mammadzada, Gunay"]
[Black "Levitan, Caleb Levi"]
[WhiteFideId "13403729"]
[BlackFideId "14332620"]
[WhiteElo "2496"]
[BlackElo "2291"]
[Result "1-0"]
[Round "2"]
[TimeControl "180+1"]
[Date "2023.08.15"]
[WhiteClock "0:00:06"]
[BlackClock "0:00:00"]
[Board "186"]

1. e4 {[%clk 0:02:45]}  e5 {[%clk 0:02:59]} 2. Nf3 {[%clk 0:02:41]}  Nc6 {[%clk 0:02:59]} 3. g3 {[%clk 0:02:36]}  Nf6 {[%clk 0:02:56]} 4. d3 {[%clk 0:02:36]}  Bc5 {[%clk 0:02:52]} 5. Bg2 {[%clk 0:02:35]}  d6 {[%clk 0:02:52]} 6. O-O {[%clk 0:02:35]}  O-O {[%clk 0:02:52]} 7. Nc3 {[%clk 0:02:35]}  h6 {[%clk 0:02:52]} 8. h3 {[%clk 0:02:34]}  Nd4 {[%clk 0:02:46]} 9. Nxd4 {[%clk 0:02:33]}  Bxd4 {[%clk 0:02:44]} 10. Kh2 {[%clk 0:02:26]}  Be6 {[%clk 0:02:31]} 11. f4 {[%clk 0:02:24]}  exf4 {[%clk 0:02:29]} 12. gxf4 {[%clk 0:02:25]}  Kh8 {[%clk 0:01:45]} 13. f5 {[%clk 0:02:23]}  Bd7 {[%clk 0:01:43]} 14. Bf4 {[%clk 0:02:23]}  Be5 {[%clk 0:01:42]} 15. d4 {[%clk 0:02:17]}  Bxf4+ {[%clk 0:01:39]} 16. Rxf4 {[%clk 0:02:17]}  Qe7 {[%clk 0:01:39]} 17. Qe2 {[%clk 0:02:01]}  Rae8 {[%clk 0:01:24]} 18. Rg1 {[%clk 0:01:56]}  Bc6 {[%clk 0:01:16]} 19. Bf3 {[%clk 0:01:54]}  Rg8 {[%clk 0:01:10]} 20. Qg2 {[%clk 0:01:51]}  b5 {[%clk 0:00:59]} 21. b4 {[%clk 0:01:36]}  Nh7 {[%clk 0:00:46]} 22. h4 {[%clk 0:01:25]}  g5 {[%clk 0:00:34]} 23. fxg6 {[%clk 0:00:57]}  Rxg6 {[%clk 0:00:33]} 24. Qf2 {[%clk 0:00:54]}  Rxg1 {[%clk 0:00:30]} 25. Kxg1 {[%clk 0:00:47]}  Rg8+ {[%clk 0:00:29]} 26. Kh2 {[%clk 0:00:47]}  Bd7 {[%clk 0:00:23]} 27. Bg2 {[%clk 0:00:39]}  Rg7 {[%clk 0:00:19]} 28. Nd5 {[%clk 0:00:38]}  Qf8 {[%clk 0:00:14]} 29. Nxc7 {[%clk 0:00:30]}  Qb8 {[%clk 0:00:10]} 30. Nd5 {[%clk 0:00:30]}  Be6 {[%clk 0:00:10]} 31. Nf6 {[%clk 0:00:22]}  Nxf6 {[%clk 0:00:09]} 32. Rxf6 {[%clk 0:00:23]}  d5+ {[%clk 0:00:07]} 33. e5 {[%clk 0:00:24]}  Kh7 {[%clk 0:00:04]} 34. Qf4 {[%clk 0:00:20]}  Rg6 {[%clk 0:00:05]} 35. Rxg6 {[%clk 0:00:19]}  fxg6 {[%clk 0:00:05]} 36. c3 {[%clk 0:00:07]}  Qe8 {[%clk 0:00:05]} 37. Bf1 {[%clk 0:00:06]}  a6 {[%clk 0:00:04]} 38. Bd3 {[%clk 0:00:06]}  h5 {[%clk 0:00:03]} 39. Qf6 {[%clk 0:00:04]}  Kh6 {[%clk 0:00:02]} 40. Kg3 {[%clk 0:00:03]}  Kh7 {[%clk 0:00:01]} 41. Kf4 {[%clk 0:00:03]}  Kh6 {[%clk 0:00:01]} 42. Qg5+ {[%clk 0:00:03]}  Kh7 {[%clk 0:00:02]} 43. Qf6 {[%clk 0:00:03]}  Kh6 {[%clk 0:00:02]} 44. Ke3 {[%clk 0:00:04]}  Kh7 {[%clk 0:00:01]} 45. Kd2 {[%clk 0:00:04]}  Kh6 {[%clk 0:00:02]} 46. Kc2 {[%clk 0:00:05]}  Kh7 {[%clk 0:00:02]} 47. Kb2 {[%clk 0:00:05]}  Kh6 {[%clk 0:00:02]} 48. a4 {[%clk 0:00:05]}  bxa4 {[%clk 0:00:02]} 49. Ka3 {[%clk 0:00:06]}  Kh7 {[%clk 0:00:00]} 50. Bc2 {[%clk 0:00:06]} 1-0


[Site "https://www.chess.com"]